bitfinex/quotes_ETHUSD_20250827
["timestamp","ask_amount","ask_price","bid_price","bid_amount"]
[1756293915922,0.7422,4601.4,4601.3,11.9858]
[1756293916126,0.0004,4601.4,4601.3,13.49716952]
[1756293916928,0.0004,4601.4,4601.3,13.92566952]
[1756293917430,0.0004,4601.4,4601.3,20.12321182]
[1756293917795,0.0004,4601.4,4601.3,20.78321182]
[1756293918627,0.0004,4601.4,4601.3,17.12921182]
[1756293918931,0.0004,4601.4,4601.3,20.78421182]
[1756293919527,0.0004,4601.4,4601.3,21.22501182]
[1756293920201,0.0004,4601.4,4601.3,17.57001182]
[1756293920402,0.0004,4601.4,4601.3,21.22501182]
[1756293922035,0.0004,4601.4,4601.3,20.78421182]
[1756293925207,0.0016,4601.9,4601.4,3.66]
[1756293925407,0.0016,4601.9,4601.7,0.66]
[1756293925607,0.0016,4601.9,4601.8,9.0938]
[1756293925836,0.0016,4601.9,4601.8,9.0928]
[1756293926034,0.2945,4601.9,4601.8,9.0928]
[1756293926540,0.0016,4601.9,4601.8,8.4328]
[1756293926729,0.0016,4601.9,4601.8,9.48444307]
[1756293927040,0.2945,4601.9,4601.8,9.48444307]
[1756293927741,0.2945,4601.9,4601.8,9.50444307]
[1756293930622,0.7627,4601.9,4601.8,9.50444307]
[1756293930827,0.7627,4601.9,4601.8,1.7998]
[1756293931033,0.7627,4601.9,4601.8,5.4508]
[1756293931775,0.7627,4601.9,4601.8,5.342]
[1756293932139,0.7627,4601.9,4601.8,1.691]
[1756293932638,0.7627,4601.9,4601.8,5.342]
[1756293934157,0.2945,4601.9,4601.8,5.342]
[1756293934364,0.0016,4601.9,4601.8,9.1926]
[1756293934734,0.0016,4601.9,4601.8,8.8762]
[1756293935336,0.0016,4601.9,4601.8,9.1926]
[1756293935541,0.0016,4601.9,4601.8,8.8762]
[1756293935761,0.2945,4601.9,4601.8,8.8762]
[1756293936874,0.0016,4601.9,4601.8,9.1926]
[1756293937653,0.0016,4601.9,4601.8,8.8762]
[1756293937853,0.2945,4601.9,4601.8,8.8762]
[1756293938254,0.0016,4601.9,4601.8,8.8762]
[1756293938450,0.0016,4601.9,4601.8,9.1926]
[1756293938865,0.0016,4601.9,4601.8,5.2252]
[1756293939068,0.2945,4601.9,4601.8,8.8762]
[1756293939267,0.0016,4601.9,4601.8,8.8762]
[1756293939473,0.0016,4601.9,4601.8,9.1926]
[1756293941151,0.0016,4601.9,4601.8,8.8762]
[1756293941646,0.0016,4601.9,4601.8,8.985]
[1756293942240,0.0016,4601.9,4601.8,9.14520516]
[1756293942881,0.0016,4601.9,4601.8,9.46160516]
[1756293944782,0.002,4602.4,4601.9,3.0]
[1756293945082,0.002,4602.4,4602.3,9.9663423]
[1756293945259,0.002,4602.4,4602.3,13.9327423]
[1756293945458,0.002,4602.4,4602.3,14.3778423]
[1756293945884,0.002,4602.4,4602.3,13.9327423]
[1756293946061,0.002,4602.4,4602.3,14.3778423]
[1756293946262,0.002,4602.4,4602.3,15.51045078]
[1756293947468,0.002,4602.4,4602.3,15.95555078]
[1756293947870,0.02,4602.8,4602.4,3.66]
[1756293948181,0.02,4602.8,4602.6,3.66]
[1756293948387,0.02,4602.8,4602.7,9.4062]
[1756293948587,0.02,4602.8,4602.7,10.39133]
[1756293948886,0.02,4602.8,4602.7,10.478399]
[1756293949248,0.02,4602.8,4602.7,10.923499]
[1756293949651,0.0192,4602.8,4602.7,10.923499]
[1756293950784,0.0192,4602.8,4602.7,10.478399]
[1756293950951,0.3264,4602.8,4602.7,10.161999]
[1756293951378,0.3264,4602.8,4602.7,10.07493]
[1756293951786,0.7882,4602.8,4602.7,9.41493]
[1756293951950,0.7882,4602.8,4602.7,1.7798]
[1756293952157,0.7882,4602.8,4602.7,5.4298]
[1756293954601,0.7882,4602.8,4602.7,8.4298]
[1756293955412,0.0192,4602.8,4602.7,8.4298]
[1756293955559,0.3264,4602.8,4602.7,8.4298]
[1756293957601,0.0192,4602.8,4602.7,8.4298]
[1756293958063,0.3264,4602.8,4602.7,8.4298]
[1756293960611,0.7882,4602.8,4602.7,8.4298]
[1756293961269,0.3264,4602.8,4602.7,8.4298]
[1756293962263,0.0192,4602.8,4602.7,8.7388]
[1756293962468,0.0192,4602.8,4602.7,4.7798]
[1756293962469,0.7882,4602.8,4602.7,4.7798]
[1756293962669,0.7882,4602.8,4602.7,8.4298]
[1756293964399,0.3264,4602.8,4602.7,8.4298]
[1756293964601,0.0192,4602.8,4602.7,8.9563]
[1756293964901,0.3264,4602.8,4602.7,8.4298]
[1756293965371,0.7882,4602.8,4602.7,8.4298]
[1756293967352,0.7882,4602.8,4602.7,4.7798]
[1756293967639,0.7882,4602.8,4602.7,5.4298]
[1756293968200,0.7902,4602.8,4602.7,5.4298]
[1756293968409,0.7902,4602.8,4602.7,5.4288]
[1756293971148,0.7902,4602.8,4602.7,1.7798]
[1756293971464,0.7902,4602.8,4602.7,3.649]
[1756293972547,0.7902,4602.8,4602.6,0.001]
[1756293972922,0.1088,4602.7,4602.6,0.001]
[1756293973118,0.1088,4602.7,4602.6,3.072]
[1756293973322,0.8778,4602.7,4602.6,3.072]
[1756293973723,0.8778,4602.7,4602.6,0.001]
[1756293974157,0.877,4602.7,4602.6,0.001]
[1756293974866,1.53039,4602.7,4602.6,0.001]
[1756293977063,10.7279323,4602.7,4602.6,0.001]
[1756293977438,11.3879323,4602.7,4602.6,0.001]
[1756293977866,13.0635323,4602.7,4602.6,0.001]
[1756293978035,14.7345323,4602.7,4602.6,0.001]
[1756293979779,15.07460419,4602.7,4602.6,0.001]
[1756293982245,3.66,4602.6,4602.2,0.001]
[1756293982469,0.7688,4602.3,4602.2,0.001]
[1756293982673,7.7082,4602.3,4602.2,0.001]
[1756293982872,8.1665,4602.3,4602.2,0.001]
[1756293983376,8.253648,4602.3,4602.2,0.001]
[1756293984062,9.929248,4602.3,4602.2,0.001]
[1756293985478,6.278248,4602.3,4602.2,0.001]
[1756293985666,9.929248,4602.3,4602.2,0.001]
[1756293988276,10.26935458,4602.3,4602.2,0.001]
[1756293996004,10.26935458,4602.3,4601.7,0.001]
[1756293996005,2.3126,4601.8,4601.7,0.001]
[1756293996310,8.9636,4601.8,4601.7,0.001]
[1756293996607,9.0724,4601.8,4601.7,0.001]
[1756293996804,6.5154,4601.8,4601.7,0.001]
[1756293997020,5.8644,4601.8,4601.7,0.2992]
[1756293997186,5.8554,4601.8,4601.7,0.2992]
[1756293997388,5.8554,4601.8,4601.7,0.7412]
[1756293998178,8.8554,4601.8,4601.7,0.2992]
[1756293998595,8.8546,4601.8,4601.7,0.2992]
[1756294001711,8.8546,4601.8,4601.7,0.001]
[1756294002015,8.8546,4601.8,4601.7,0.2992]
[1756294002813,8.8546,4601.8,4601.7,0.001]
[1756294003382,8.8546,4601.8,4601.7,0.2992]
[1756294003878,9.143,4601.8,4601.7,0.001]
[1756294004383,8.4116,4601.8,4601.7,0.2992]
[1756294010331,8.4116,4601.8,4601.7,0.001]
[1756294010911,8.7177,4601.8,4601.7,0.001]
[1756294012609,5.4206,4601.8,4601.7,0.001]
[1756294012938,2.0839,4601.8,4601.7,0.7485]
[1756294013841,1.6518,4601.8,4601.7,0.7485]
[1756294016416,3.65,4602.5,4601.7,0.7485]
[1756294016738,0.002,4602.6,4601.8,0.4311]
[1756294017117,0.002,4602.6,4602.5,0.3164]
[1756294017914,0.3081,4602.6,4601.7,0.001]
[1756294018115,3.9581,4602.6,4601.7,0.001]
[1756294018342,3.9581,4602.6,4601.8,0.4311]
[1756294018517,3.0,4602.5,4601.8,0.4311]
[1756294018719,3.0,4602.5,4601.7,0.001]
[1756294019240,3.4579,4602.5,4601.7,0.001]
[1756294019608,3.4579,4602.5,4601.7,0.4321]
[1756294022357,3.4579,4602.5,4601.7,0.001]
[1756294022550,1.6518,4602.4,4601.7,0.4321]
[1756294022751,0.1088,4601.8,4601.7,0.4321]
[1756294022945,0.1088,4601.8,4601.7,0.3174]
[1756294023150,0.108,4601.8,4601.7,0.3174]
[1756294023749,0.108,4601.8,4601.7,0.7485]
[1756294023952,0.1088,4602.4,4601.7,0.8573]
[1756294024253,0.1088,4602.4,4601.8,0.4311]
[1756294024643,0.1088,4602.4,4602.3,0.3164]
[1756294024842,0.1088,4602.4,4602.3,0.7475]
[1756294027478,0.1088,4602.4,4602.3,0.3164]
[1756294028206,0.1088,4602.4,4601.7,0.1098]
[1756294028343,0.1088,4602.4,4601.8,0.4311]
[1756294028546,0.1088,4602.4,4602.3,0.3164]
[1756294028846,0.1088,4602.4,4601.8,0.4311]
[1756294029305,0.1088,4602.4,4601.7,0.5409]
[1756294029889,0.1088,4602.4,4602.3,0.3164]
[1756294030575,0.1088,4602.4,4601.8,0.4311]
[1756294031579,0.1088,4602.4,4602.3,0.3164]
[1756294032354,0.1088,4602.4,4602.3,0.7475]
[1756294033375,0.1088,4602.4,4602.3,0.3164]
[1756294033679,0.1088,4602.4,4601.7,0.5409]
[1756294034584,0.1088,4602.4,4602.3,0.3164]
[1756294035760,0.1088,4602.4,4601.8,0.4311]
[1756294037297,0.1088,4602.4,4602.3,0.3164]
[1756294038196,0.1088,4602.4,4602.3,0.7475]
[1756294039401,0.1088,4602.4,4602.3,0.3164]
[1756294039596,0.1088,4602.4,4602.0,0.4311]
[1756294039780,0.1088,4602.4,4601.7,0.1098]
[1756294040172,0.5557,4602.4,4601.7,0.1098]
[1756294040575,0.2969,4601.8,4601.7,0.001]
[1756294040773,0.4057,4601.8,4601.7,0.001]
[1756294041097,2.5044,4601.8,4601.7,0.001]
[1756294042509,2.591541,4601.8,4601.7,0.001]
[1756294044701,5.591541,4601.8,4601.7,0.001]
[1756294045411,6.251541,4601.8,4601.7,0.001]
[1756294046218,3.66,4601.7,4601.6,0.001]
[1756294046586,4.4038,4601.7,4601.6,0.001]
[1756294046777,1.4038,4601.7,4601.6,0.001]
[1756294046979,5.1616,4601.7,4601.6,0.001]
[1756294047579,5.1608,4601.7,4601.6,0.001]
[1756294048001,12.1006,4601.7,4601.6,0.001]
[1756294048222,9.8116,4601.7,4601.6,0.001]
[1756294048400,16.0091423,4601.7,4601.6,0.001]
[1756294048907,16.34929905,4601.7,4601.6,0.001]
[1756294051198,12.70029905,4601.7,4601.6,0.001]
[1756294051411,16.35029905,4601.7,4601.6,0.001]
[1756294052488,16.43746805,4601.7,4601.6,0.001]
[1756294055404,16.0973113,4601.7,4601.6,0.001]
[1756294056313,1.6488,4601.3,4601.1,0.001]
[1756294056519,10.6308,4601.3,4601.1,0.001]
[1756294056682,11.3746,4601.3,4601.1,0.001]
[1756294056886,11.4834,4601.3,4601.1,0.001]
[1756294057313,11.570577,4601.3,4601.1,0.001]
[1756294058707,11.91077044,4601.3,4601.1,0.001]
[1756294062827,4.51697044,4601.3,4601.2,0.3116]
[1756294063010,8.16697044,4601.3,4601.2,0.3116]
[1756294063215,8.16697044,4601.3,4601.2,0.7602]
[1756294063415,5.74937044,4601.3,4601.2,0.7602]
[1756294063617,5.20817044,4601.3,4601.2,0.7602]
[1756294063794,8.85817044,4601.3,4601.2,0.7602]
[1756294063995,9.51817044,4601.3,4601.2,0.7602]
[1756294064402,9.51817044,4601.3,4601.2,0.3116]
[1756294064919,9.177977,4601.3,4601.2,0.3116]
[1756294066720,9.177977,4601.3,4601.2,0.001]
[1756294066923,9.177977,4601.3,4601.2,0.3116]
[1756294067322,9.474877,4601.3,4601.2,0.001]
[1756294068014,9.177977,4601.3,4601.2,0.3116]
[1756294068216,9.51813503,4601.3,4601.2,0.3116]
[1756294070045,9.51813503,4601.3,4601.2,0.001]
[1756294070213,9.81733503,4601.3,4601.2,0.001]
[1756294071347,10.27633503,4601.3,4601.2,0.001]
[1756294071513,9.81733503,4601.3,4601.2,0.001]
[1756294071719,9.51813503,4601.3,4601.2,0.001]
[1756294072141,9.51733503,4601.3,4601.2,0.001]
[1756294074245,9.51933503,4601.3,4601.2,0.001]
[1756294074425,9.81853503,4601.3,4601.2,0.001]
[1756294075047,9.478377,4601.3,4601.2,0.001]
[1756294075419,9.937377,4601.3,4601.2,0.001]
[1756294077340,9.478377,4601.3,4601.2,0.001]
[1756294077922,9.179177,4601.3,4601.2,0.001]
[1756294078247,9.51933274,4601.3,4601.2,0.001]
[1756294078546,10.27753274,4601.3,4601.2,0.001]
[1756294078752,0.66,4601.0,4600.9,0.001]
[1756294078950,7.31,4601.0,4600.9,0.001]
[1756294079255,7.4188,4601.0,4600.9,0.001]
[1756294079422,7.505969,4601.0,4600.9,0.001]
[1756294080747,7.505969,4601.0,4600.9,0.3073]
[1756294082360,7.505969,4601.0,4600.9,0.7487]
[1756294083439,7.505969,4601.0,4600.9,0.001]
[1756294084659,9.152769,4601.0,4600.9,0.001]
[1756294086153,9.451969,4601.0,4600.9,0.001]
[1756294087034,9.152769,4601.0,4600.9,0.001]
[1756294087366,9.152769,4601.0,4600.9,0.7487]
[1756294089366,9.451969,4601.0,4600.9,0.001]
[1756294089737,9.910969,4601.0,4600.9,0.001]
[1756294090661,16.1085113,4601.0,4600.9,0.001]
[1756294091061,16.39567311,4601.0,4600.9,0.001]
[1756294095460,16.1085113,4601.0,4600.9,0.001]
[1756294096554,16.1077113,4601.0,4600.9,0.001]
[1756294098766,16.44791298,4601.0,4600.9,0.001]
[1756294104774,5.18297068,4601.0,4600.9,0.2861]
[1756294104980,5.492769,4601.0,4600.9,0.7546]
[1756294105177,9.152769,4601.0,4600.9,0.7546]
[1756294107995,9.152769,4601.0,4600.9,0.2861]
[1756294108290,9.49294631,4601.0,4600.9,0.2861]
[1756294114385,9.49494631,4601.0,4600.9,0.2861]
[1756294115279,9.154769,4601.0,4600.9,0.2861]
[1756294115606,9.154769,4601.0,4600.9,0.001]
[1756294118173,9.154769,4601.0,4600.9,0.2861]
[1756294118677,9.49495193,4601.0,4600.9,0.2861]
[1756294119380,9.49495193,4601.0,4600.9,0.001]
[1756294119997,1.6248,4600.8,4600.7,0.001]
[1756294120201,8.9338,4600.8,4600.7,0.001]
[1756294120609,8.9338,4600.8,4600.7,0.2861]
[1756294120807,9.020977,4600.8,4600.7,0.2861]
[1756294120979,9.22414902,4600.8,4600.7,0.7546]
[1756294122095,9.22414902,4600.8,4600.7,0.2861]
[1756294124423,9.22414902,4600.8,4600.7,0.001]
[1756294125495,9.53544902,4600.8,4600.7,0.001]
[1756294125694,9.97974902,4600.8,4600.7,0.001]
[1756294126303,3.66,4600.7,4600.4,0.001]
[1756294126508,3.66,4600.5,4600.4,0.001]
[1756294126709,4.17527202,4600.5,4600.4,0.001]
[1756294126925,4.502784,4600.5,4600.4,0.001]
[1756294127117,5.371184,4600.5,4600.4,0.001]
[1756294127899,9.019184,4600.5,4600.4,0.001]
[1756294128826,9.35939781,4600.5,4600.4,0.001]
[1756294129331,9.67069781,4600.5,4600.4,0.001]
[1756294129826,9.35939781,4600.5,4600.4,0.2861]
[1756294131533,10.11649781,4600.5,4600.4,0.001]
[1756294132235,16.31404011,4600.5,4600.4,0.001]
[1756294135425,15.9738263,4600.5,4600.4,0.001]
[1756294138656,16.31405846,4600.5,4600.4,0.001]
[1756294138954,15.84715846,4600.5,4600.4,0.001]
[1756294142262,16.05101563,4600.5,4600.4,0.001]
[1756294142816,16.51791563,4600.5,4600.4,0.001]
[1756294143046,3.66,4600.4,4599.9,0.001]
[1756294143318,5.64465717,4600.4,4599.9,0.001]
[1756294143516,6.40175717,4600.4,4599.9,0.001]
[1756294143729,0.66,4599.7,4599.6,0.4489]
[1756294143945,0.66,4599.7,4598.8,0.02]
[1756294143946,0.66,4599.5,4598.8,0.02]
[1756294144126,3.0,4599.3,4598.9,0.4489]
[1756294144326,3.85085717,4599.2,4598.9,0.4489]
[1756294144527,0.1088,4599.0,4598.9,0.4489]
[1756294144847,0.31265717,4599.0,4598.9,0.7606]
[1756294145139,4.61360417,4599.0,4598.9,0.7606]
[1756294145548,4.61280417,4599.0,4598.9,0.7606]
[1756294147216,4.61275911,4599.0,4598.9,0.7606]
[1756294149715,6.21375911,4599.0,4598.9,0.7606]
[1756294150155,2.56675911,4599.0,4598.9,0.7606]
[1756294153453,2.56675911,4599.0,4598.9,0.3117]
[1756294153658,2.56675911,4599.0,4598.9,0.7606]
[1756294154460,1.91281211,4599.0,4598.9,0.7606]
[1756294154959,1.91281211,4599.0,4598.9,0.3117]
[1756294155657,2.36171211,4599.0,4598.9,0.3117]
[1756294157454,2.361784,4599.0,4598.9,0.3117]
[1756294158060,2.361784,4599.0,4598.9,0.7606]
[1756294158357,2.36178362,4599.0,4598.9,0.7606]
[1756294159458,2.36178362,4599.0,4598.9,0.3117]
[1756294163047,2.36178362,4599.0,4598.9,0.773]
[1756294167348,2.36178362,4599.0,4598.9,0.3117]
[1756294167870,2.36193992,4599.0,4598.9,0.3117]
[1756294168653,2.3619579,4599.0,4598.9,0.3117]
[1756294168853,2.3619579,4599.0,4598.9,0.773]
[1756294169983,2.3611579,4599.0,4598.9,0.773]
[1756294171250,1.9122579,4599.0,4598.9,0.773]
[1756294174301,1.8050579,4599.0,4598.9,0.773]
[1756294174662,0.2040579,4599.0,4598.9,0.773]
[1756294175686,0.20404552,4599.3,4598.9,0.773]
[1756294175891,0.20404552,4599.2,4599.0,0.4613]
[1756294176092,0.1088,4599.4,4599.1,0.4594806]
[1756294176273,0.20599987,4599.3,4599.1,0.4594806]
[1756294176470,0.20399987,4599.2,4599.1,0.4594806]
[1756294177191,0.20399987,4599.2,4599.1,0.776]
[1756294178167,0.002,4599.3,4599.1,0.776]
[1756294178368,0.20396359,4599.2,4599.1,0.3147]
[1756294178795,0.002,4599.3,4599.1,0.3147]
[1756294179090,0.002,4599.3,4599.2,0.4613]
[1756294179494,0.002,4599.3,4599.2,0.776]
[1756294180262,0.002,4599.3,4599.2,0.979931]
[1756294182897,0.002,4599.3,4599.2,1.088731]
[1756294183099,0.002,4599.3,4599.2,1.1976041]
[1756294185775,0.002,4599.3,4599.2,0.7363041]
[1756294187403,0.002,4599.3,4599.2,1.1976041]
[1756294191792,0.002,4599.3,4599.2,4.8406041]
[1756294194379,0.0012,4599.3,4599.2,4.8406041]
[1756294196414,0.0012,4599.3,4599.2,7.8406041]
[1756294198594,0.0012,4599.3,4599.2,4.8406041]
[1756294198938,0.0012,4599.3,4599.2,4.3793041]
[1756294200300,0.0012,4599.3,4599.2,4.8539041]
[1756294202395,0.0012,4599.3,4599.2,11.0514464]
[1756294202597,0.0012,4599.3,4599.2,14.0514464]
[1756294206011,0.0012,4599.3,4599.2,14.7114464]
[1756294207129,0.0012,4599.3,4599.2,3.7363041]
[1756294207346,0.7492,4599.3,4599.2,7.0626041]
[1756294207935,0.7492,4599.3,4599.2,4.0626041]
[1756294210544,0.7492,4599.3,4599.2,3.8586731]
[1756294211124,0.3111,4599.3,4599.2,3.8586731]
[1756294217222,0.0012,4599.3,4599.2,3.8586731]
[1756294217623,0.0012,4599.3,4599.2,4.1654731]
[1756294217822,0.0012,4599.3,4599.2,4.66181601]
[1756294218023,0.0012,4599.3,4599.2,5.0781731]
[1756294218927,0.0004,4599.3,4599.2,5.0781731]
[1756294219329,0.0004,4599.3,4599.2,8.0781731]
[1756294219837,0.0004,4599.3,4599.2,8.7381731]
[1756294225548,0.002,4599.8,4599.3,3.66]
[1756294225753,0.002,4599.8,4599.7,9.3063423]
[1756294225954,0.002,4599.8,4599.7,13.2507423]
[1756294226271,0.002,4599.8,4599.7,13.6807423]
[1756294226448,0.002,4599.8,4599.7,13.7678683]
[1756294229642,0.002,4600.3,4599.8,3.66]
[1756294229978,0.002,4600.3,4600.2,9.8575423]
[1756294230165,0.002,4600.3,4600.2,13.9097423]
[1756294230366,0.002,4600.3,4600.2,14.3397423]
[1756294230878,0.002,4600.3,4600.2,14.50143977]
[1756294231682,0.002,4600.3,4600.2,14.58855677]
[1756294231879,0.002,4600.3,4600.2,16.84020047]
[1756294232753,0.002,4600.3,4600.2,16.94855451]
[1756294233366,0.002,4600.3,4600.2,16.84020047]
[1756294233784,0.002,4600.3,4600.2,16.678503]
[1756294234171,0.002,4600.3,4600.2,16.78777502]
[1756294235778,0.002,4600.6,4600.3,3.66]
[1756294235976,0.002,4600.6,4600.5,3.7688]
[1756294236178,0.002,4600.6,4600.5,4.0732]
[1756294236371,0.002,4600.6,4600.5,4.5032]
[1756294236575,0.002,4600.6,4600.5,4.590308]
[1756294236976,0.002,4600.6,4600.5,4.160308]
[1756294237171,0.002,4600.6,4600.5,6.22703474]
[1756294237369,0.002,4600.6,4600.5,6.20529798]
[1756294241360,0.002,4600.6,4600.5,8.49829798]
[1756294241568,0.002,4600.6,4600.5,6.20529798]
[1756294243371,0.0012,4600.6,4600.5,6.20529798]
[1756294244204,0.002,4601.2,4600.5,6.20529798]
[1756294244522,0.002,4601.2,4600.9,9.8575423]
[1756294244674,0.002,4601.2,4600.9,15.2743423]
[1756294244875,0.002,4601.2,4600.9,16.0087423]
[1756294246171,0.002,4601.2,4600.9,16.0958393]
[1756294246598,0.002,4601.3,4601.0,3.66]
[1756294246796,0.002,4602.1,4601.5,9.8575423]
[1756294246988,0.002,4602.1,4601.6,3.66]
[1756294247194,0.002,4602.1,4601.6,4.11173157]
[1756294247400,0.002,4602.1,4601.6,4.41613157]
[1756294247605,0.002,4602.1,4601.6,5.91743339]
[1756294252083,0.002,4602.1,4601.6,5.48743339]
[1756294260323,0.4755,4602.1,4601.6,5.48743339]
[1756294262147,0.4755,4602.1,4601.6,10.70943339]
[1756294263329,0.002,4602.1,4601.6,10.70943339]
[1756294264033,0.7838,4601.7,4601.6,5.309086]
[1756294264234,0.7838,4601.7,4601.6,0.087086]
[1756294264445,0.7838,4601.7,4601.6,3.635]
[1756294264648,0.7838,4601.7,4601.6,6.635]
[1756294265514,0.7838,4601.7,4601.6,3.635]
[1756294267933,0.783,4601.7,4601.6,3.635]
[1756294270454,0.783,4601.7,4601.0,0.001]
[1756294270658,0.783,4601.7,4601.1,3.7438]
[1756294270825,0.4735,4601.6,4601.2,3.635]
[1756294271255,0.3083,4601.3,4601.2,3.635]
[1756294271562,0.7818,4601.3,4601.2,3.635]
[1756294274649,0.8906,4601.3,4601.2,3.635]
[1756294275424,0.8906,4601.3,4601.1,3.635]
[1756294275623,0.4735,4601.2,4601.0,0.001]
[1756294276019,0.3083,4601.1,4601.0,0.001]
[1756294276429,0.7818,4601.1,4601.0,0.001]
[1756294284869,0.653656,4601.6,4601.0,0.8433]
[1756294285039,0.653656,4601.6,4601.1,5.32873393]
[1756294285244,0.0012,4601.7,4601.5,0.4009]
[1756294285451,0.0012,4601.7,4601.6,3.65773157]
[1756294285859,0.0012,4601.7,4601.6,4.39123157]
[1756294286055,0.0012,4601.7,4601.6,4.3695]
[1756294292483,0.0004,4601.7,4601.6,4.3695]
[1756294292660,0.0004,4601.7,4601.6,3.9281]
[1756294293073,0.0004,4601.7,4601.6,4.37593]
[1756294295750,0.0004,4601.7,4601.6,4.37693]
[1756294297986,0.0004,4601.7,4601.6,4.53817028]
[1756294298185,0.313,4601.7,4601.6,4.24607028]
[1756294298355,0.313,4601.7,4601.6,3.79824028]
[1756294299781,0.0004,4601.7,4601.6,3.79824028]
[1756294300154,0.0004,4601.7,4601.6,4.09034028]
[1756294301558,0.0004,4601.7,4601.6,4.53174028]
[1756294301757,0.313,4601.7,4601.6,3.79824028]
[1756294301986,0.7652,4601.7,4601.6,3.79824028]
[1756294302378,0.313,4601.7,4601.6,3.79824028]
[1756294303787,0.313,4601.7,4601.6,0.16224028]
[1756294303956,0.7652,4601.7,4601.6,3.79624028]
[1756294304153,0.313,4601.7,4601.6,3.79624028]
[1756294304658,0.313,4601.7,4601.6,0.16224028]
[1756294304859,0.313,4601.7,4601.6,3.79624028]
[1756294306188,0.313,4601.7,4601.6,0.001]
[1756294306389,0.0004,4601.7,4601.6,3.635]
[1756294306596,0.0004,4601.7,4601.6,4.88655163]
[1756294306895,0.0004,4601.7,4601.6,8.54655163]
[1756294307286,0.0004,4601.7,4601.6,8.63364563]
[1756294307472,0.0004,4601.7,4601.6,8.74125483]
[1756294308863,0.002,4602.1,4601.7,3.66]
[1756294309065,0.002,4602.1,4602.0,9.8575423]
[1756294309382,0.002,4602.1,4602.0,15.4546423]
[1756294309564,0.002,4602.1,4602.0,15.5417183]
[1756294309890,0.002,4602.1,4602.0,15.9831183]
[1756294313685,0.002,4602.3,4602.0,15.9831183]
[1756294313686,0.002,4602.3,4602.1,3.66]
[1756294313900,0.02,4603.8,4602.1,3.66]
[1756294313901,0.02,4603.8,4602.3,3.66]
[1756294314073,0.4581,4603.7,4602.4,7.60052779]
[1756294314278,0.4581,4603.7,4602.4,7.5788]
[1756294314479,0.02,4603.8,4602.4,8.0306]
[1756294314703,0.02,4603.8,4602.4,9.08950251]
[1756294316406,0.4581,4603.7,4602.4,9.08950251]
[1756294316574,0.4581,4603.7,4602.4,9.19830251]
[1756294316786,0.0012,4602.5,4602.4,9.19830251]
[1756294319412,0.002,4603.1,4602.5,3.66]
[1756294319619,0.002,4603.1,4602.5,15.55206962]
[1756294319917,0.002,4603.1,4602.5,17.87999951]
[1756294320697,0.002,4603.1,4602.5,17.96706551]
[1756294322213,0.002,4603.1,4602.5,14.94972321]
[1756294322518,0.002,4603.1,4602.5,21.59906551]
[1756294322729,0.002,4603.1,4602.5,21.14726551]
[1756294323120,0.002,4603.1,4602.5,21.59906551]
[1756294326132,0.4601,4603.1,4602.5,21.14726551]
[1756294327940,0.4601,4603.1,4602.5,21.59906551]
[1756294328302,0.002,4603.1,4602.5,21.59906551]
[1756294330236,0.002,4603.1,4602.5,21.14726551]
[1756294330432,0.002,4603.1,4602.5,21.59906551]
[1756294331257,0.002,4603.1,4602.5,21.14726551]
[1756294333027,0.002,4603.1,4602.5,21.59906551]
[1756294333420,0.002,4603.1,4602.8,0.7688]
[1756294333641,0.002,4603.1,4602.8,7.4215259]
[1756294333955,0.002,4603.1,4602.8,8.224455]
[1756294334251,0.02,4603.8,4603.1,3.66]
[1756294334424,0.02,4603.8,4603.7,6.8575423]
[1756294334622,0.02,4603.8,4603.7,14.28309653]
[1756294334824,0.3076,4603.8,4603.7,14.28309653]
[1756294335058,0.02,4603.8,4603.7,14.37014753]
[1756294335648,0.02,4603.8,4603.7,14.65594753]
[1756294335844,0.3076,4603.8,4603.7,14.37014753]
[1756294336043,0.02,4603.8,4603.7,14.65594753]
[1756294336246,0.02,4603.8,4603.7,15.10774753]
[1756294336649,0.02,4603.8,4603.7,14.65594753]
[1756294337259,0.02,4603.8,4603.7,15.10774753]
[1756294338033,0.02,4603.8,4603.7,11.02494753]
[1756294338342,0.02,4603.8,4603.7,14.37014753]
[1756294338543,0.02,4603.8,4603.7,14.65594753]
[1756294339731,0.3076,4603.8,4603.7,4.54160523]
[1756294339928,0.7657,4603.8,4603.7,8.17260523]
[1756294340830,0.7657,4603.8,4603.7,4.54160523]
[1756294341066,0.7657,4603.8,4603.7,8.17260523]
[1756294341262,0.7649,4603.8,4603.7,8.17260523]
[1756294341460,0.7705,4603.8,4603.7,4.54160523]
[1756294341763,0.7705,4603.8,4603.7,0.195851]
[1756294341974,0.7705,4603.8,4603.7,3.826851]
[1756294342333,0.7705,4603.8,4603.7,0.195851]
[1756294342561,0.7705,4603.8,4603.7,3.7398]
[1756294344964,0.7705,4603.8,4603.7,0.1088]
[1756294345179,0.7705,4603.8,4603.7,2.979]
[1756294345666,0.8793,4603.8,4603.7,2.979]
[1756294346163,0.8793,4603.8,4603.2,1.67]
[1756294346370,0.4637,4603.7,4603.3,3.631]
[1756294346556,0.2882,4603.4,4603.3,3.631]
[1756294346874,0.7519,4603.4,4603.3,3.631]
[1756294347335,0.8607,4603.4,4603.2,1.67]